[Event "FIDE Womens Candidates 2024"]
[Site "Toronto"]
[Date "2024.04.10"]
[Round "6.4"]
[White "Vaishali, Rameshbabu"]
[Black "Lagno, Kateryna"]
[Result "0-1"]
[ECO "C89"]
[WhiteElo "2475"]
[BlackElo "2542"]
[Annotator "TA"]
[PlyCount "58"]
[EventDate "2024.04.02"]
[EventType "tourn"]
[EventCountry "CAN"]
[SourceTitle "playchess.com"]
[Source "ChessBase"]
[SourceQuality "1"]
[TimeControl "40/5400+30:1800+30"]

{[%evp 19,58,0,13,-12,-12,-14,0,-8,46,-29,-25,0,0,0,-25,-32,0,-34,-41,-27,-8,-7,-22,-193,-196,-644,-372,-713,-367,-370,-379,-386,-384,-362,-385,-386,-383,-475,-455,-648,-641]} 1. e4 {[%emt 0:00:23]} e5 {[%emt 0:00:06]} 2. Nf3 {[%emt 0:00:04]} Nc6 {[%emt 0:00:06]} 3. Bb5 {[%emt 0:00:04][%cal Bf1b5,Bb5a4,Ba4b3][%mdl 32]} a6 {[%emt 0:00:30]} 4. Ba4 {[%emt 0:00:05]} Nf6 {[%emt 0:00:06]} 5. O-O {[%emt 0:00:05]} Be7 {[%emt 0:00:14]} 6. Re1 {[%emt 0:00:13]} b5 {[%emt 0:00:17]} 7. Bb3 {[%emt 0:00:02]} O-O {[%emt 0:00:07]} 8. c3 {[%emt 0:00:15]} d5 {[%emt 0:01:21]} 9. exd5 {[%emt 0:00:32]} Nxd5 {[%emt 0:00:05]} 10. d3 {[%emt 0:00:16]} Bb7 {[%emt 0:04:22]} 11. a4 {[%emt 0:00:22]} b4 {[%emt 0:04:48]} 12. a5 {[%emt 0:00:28]} Kh8 {[%emt 0:11:06]} 13. d4 {[%emt 0:07:50] The position is equal.} bxc3 {[%emt 0:05:31]} (13... exd4 $11 14. cxd4 Bf6) 14. bxc3 {[%emt 0:10:58]} (14. Nxc3 $14 Nxc3 15. bxc3) 14... exd4 $11 {[%emt 0:00:40]} 15. cxd4 {[%emt 0:00:23]} Ncb4 {[%emt 0:10:44]} 16. Bc4 {[%emt 0:13:56]} c5 {[%emt 0:05:01]} 17. Bb2 {[%emt 0:02:35]} cxd4 {[%emt 0:09:24]} 18. Qxd4 {[%emt 0:11:55]} Bf6 {[%emt 0:00:27]} 19. Qd2 {[%emt 0:00:07]} Bxb2 {[%emt 0:05:37]} 20. Qxb2 {[%emt 0:00:10] [#] Bxd5 would now be deadly.} Nf4 {[%emt 0:01:52] Threatens to win with ...Bxf3.} 21. Qxb4 $2 {[%emt 0:26:57] Loses the game.} (21. Re3 $1 $11 {and White is okay.}) 21... Bxf3 $19 {[%emt 0:00:20]} 22. g3 {[%emt 0:00:45]} ({But not} 22. Bf1 $2 Nxg2 (22... Nh3+ 23. Kh1 $17) 23. Re5 (23. Bxg2 $2 {gets mated.} Qg5) 23... Qf6 $19) (22. Qe7 Nxg2 (22... Bxg2 23. Qxd8 Rfxd8 24. Nc3 $19) 23. Qxd8 Rfxd8 (23... Raxd8 $2 24. Rc1 $19) 24. Rc1) 22... Qd4 {[%emt 0:13:10] ( -> ...Nh3+)} 23. Ra2 $2 {[%emt 0:00:54]} (23. gxf4 Qxa1 24. Bf1) 23... Nd3 {[%emt 0:00:50]} 24. Rd2 {[%emt 0:07:31]} Nxb4 {[%emt 0:00:11]} 25. Rxd4 {[%emt 0:00:02]} Nc2 $1 {[%emt 0:00:05][%csl LRd4,LRe1]} 26. Rdd1 {[%emt 0:00:50]} Nxe1 {[%emt 0:00:14]} 27. Rxe1 {[%emt 0:00:03]} Rfe8 {[%emt 0:01:15]} 28. Rc1 {[%emt 0:01:35]} Rac8 {[%emt 0:00:33][%cal Oc8c4] [#] White must now prevent ...Rxc4!} 29. Nd2 {[%emt 0:00:10]} (29. Na3 $142) 29... Bd5 {[%emt 0:00:29] Weighted Error Value: White=0.99/Black=0.52.  Loses game:     	White=1     	---        Mistake:       	White=4     	Black=1      Inaccurate:     	White=1     	Black=2      OK:         	White=4     	Black=9      Best:        	White=1     	Black=3} 0-1

[Event "FIDE Womens Candidates 2024"]
[Site "Toronto"]
[Date "2024.04.11"]
[Round "7.1"]
[White "Goryachkina, Aleksandra"]
[Black "Tan, Zhongyi"]
[Result "1/2-1/2"]
[ECO "D30"]
[WhiteElo "2553"]
[BlackElo "2521"]
[Annotator "TA"]
[PlyCount "80"]
[EventDate "2024.04.02"]
[EventType "tourn"]
[EventCountry "CAN"]
[SourceTitle "playchess.com"]
[Source "ChessBase"]
[SourceQuality "1"]
[TimeControl "40/5400+30:1800+30"]

{[%evp 9,80,29,23,33,27,22,19,16,35,29,29,9,12,15,25,22,26,0,19,15,16,22,24,25,43,56,53,10,16,13,56,41,45,54,44,55,37,42,23,10,8,12,11,18,6,0,0,0,0,0,0,0,0,0,0,0,0,0,0,0,0,-1,0,0,0,0,0,0,0,0,2,0,0]} 1. d4 {[%emt 0:00:08]} d5 {[%emt 0:00:07]} 2. c4 {[%emt 0:00:17]} e6 {[%emt 0:00:09]} 3. Nf3 {[%emt 0:00:24]} a6 {[%emt 0:00:19]} 4. Bg5 {[%emt 0:03:14]} Be7 {[%emt 0:00:09]} 5. Bxe7 {[%emt 0:00:16]} Qxe7 {[%emt 0:00:06]} 6. Nbd2 {[%emt 0:00:48]} Nf6 {[%emt 0:00:09]} 7. g3 {[%emt 0:01:32]} O-O {[%emt 0:02:58]} 8. Bg2 {[%emt 0:01:55]} b6 {[%emt 0:00:09]} 9. O-O {[%emt 0:02:13]} c5 {[%emt 0:00:07]} 10. dxc5 {[%emt 0:08:04]} bxc5 {[%emt 0:00:13]} 11. Qc2 {[%emt 0:01:04]} Bb7 {[%emt 0:03:06]} 12. cxd5 {[%emt 0:06:28]} exd5 {[%emt 0:00:09][%cal Ob8d7]} 13. Nb3 {[%emt 0:02:01]} Nbd7 {[%emt 0:00:11]} 14. Na5 {[%emt 0:02:26]} Rab8 {[%emt 0:00:11]} 15. Nxb7 {[%emt 0:01:47]} Rxb7 {[%emt 0:00:05]} 16. Rfd1 {[%emt 0:01:24]} Rfb8 {[%emt 0:00:27]} 17. b3 {[%emt 0:01:23]} a5 {[%emt 0:02:07][%cal Oa5a4]} 18. Ng5 {[%emt 0:06:41]} Qe5 {[%emt 0:21:26]} 19. Qd2 {[%emt 0:03:11][%csl LRa5,LRd5][%cal Rg2d5]} Re8 {[%emt 0:02:14]} 20. Bxd5 {[%emt 0:08:50]} (20. Nh3 {looks sharper.} a4 21. Nf4 axb3 22. axb3 Rxb3 23. Bxd5 Rb2 24. Qc1) 20... Qxd5 {[%emt 0:00:13]} 21. Qxd5 {[%emt 0:00:08]} Nxd5 {[%emt 0:00:05]} 22. Rxd5 {[%emt 0:00:06]} h6 {[%emt 0:03:31]} 23. Nf3 {[%emt 0:11:46] Hoping for Rad1.} Rxe2 {[%emt 0:00:09]} 24. Kf1 {[%emt 0:04:06]} Rb2 {[%emt 0:05:30] The position is equal.} 25. Rad1 {[%emt 0:08:31]} Nf6 {[%emt 0:00:55]} 26. Rd8+ {[%emt 0:00:36]} Kh7 {[%emt 0:00:13]} 27. R1d2 {[%emt 0:02:46]} Rb1+ {[%emt 0:00:26]} 28. Kg2 {[%emt 0:04:04]} a4 $1 {[%emt 0:01:18]} 29. bxa4 {[%emt 0:02:47][%cal Bb3a4,Ba4a5][%mdl 32]} Ne4 {[%emt 0:09:07]} 30. Re2 {[%emt 0:00:29]} f5 {[%emt 0:00:07]} 31. a5 {[%emt 0:01:15]} R7b2 $1 {[%emt 0:01:51]} 32. Nd2 $1 {[%emt 0:03:57] [#] Strongly threatening a6.} Ra1 {[%emt 0:04:38]} 33. a4 {[%emt 0:03:32]} Nf6 {[%emt 0:07:34]} 34. a6 {[%emt 0:02:52] Black must now prevent a7.} Rxa4 {[%emt 0:00:37]} 35. Re5 {[%emt 0:00:52]} Rxa6 {[%emt 0:03:50] [#] And now ...Raa2 would win.} 36. Nc4 {[%emt 0:02:00]} Ng4 {[%emt 0:24:34]} (36... Rc2 $5 37. Ne3 $8 Ng4 38. Nxc2 Nxe5 $16) 37. Nxb2 {[%emt 0:00:46]} Nxe5 {[%emt 0:00:05]} 38. Rd5 {[%emt 0:00:15][%csl LRc5,LRe5]} Ra2 {[%emt 0:02:21]} 39. Rxe5 {[%emt 0:00:37]} Rxb2 {[%emt 0:00:04]} 40. Rxc5 {[%emt 0:00:00]} Kg6 {[%emt 0:00:00] Weighted Error Value: White=0.04 (flawless) /Black=0.04 (flawless) .  Inaccurate:     	White=2     	Black=1      OK:         	White=16    	Black=14     Best:        	---       	Black=4      Strong:       	White=1     	Black=2} 1/2-1/2

[Event "FIDE Womens Candidates 2024"]
[Site "Toronto"]
[Date "2024.04.11"]
[Round "7.2"]
[White "Lagno, Kateryna"]
[Black "Salimova, Nurgyul"]
[Result "1/2-1/2"]
[ECO "C60"]
[WhiteElo "2542"]
[BlackElo "2432"]
[Annotator "TA"]
[PlyCount "81"]
[EventDate "2024.04.02"]
[EventType "tourn"]
[EventCountry "CAN"]
[SourceTitle "playchess.com"]
[Source "ChessBase"]
[SourceQuality "1"]
[TimeControl "40/5400+30:1800+30"]

{[%evp 11,81,17,32,17,17,27,27,36,34,27,29,40,29,46,21,34,52,24,40,20,46,50,70,62,87,35,41,33,31,43,34,31,63,67,76,78,90,83,74,53,44,28,44,14,15,19,36,30,29,0,5,0,0,0,0,0,0,0,0,0,0,0,0,0,0,0,0,0,0,0,0,0]} 1. e4 {[%emt 0:00:02]} e5 {[%emt 0:00:06]} 2. Nf3 {[%emt 0:00:08]} Nc6 {[%emt 0:00:04]} 3. Bb5 {[%emt 0:00:18]} Nge7 {[%emt 0:00:27]} 4. O-O {[%emt 0:00:54]} Ng6 {[%emt 0:00:34]} 5. d4 {[%emt 0:01:21]} exd4 {[%emt 0:03:03]} 6. Nxd4 {[%emt 0:00:12]} Bc5 {[%emt 0:00:52]} 7. Be3 {[%emt 0:04:09]} Nxd4 {[%emt 0:05:40]} 8. Bxd4 {[%emt 0:00:13]} Bxd4 {[%emt 0:00:07]} 9. Qxd4 {[%emt 0:00:04] White has an edge.} Qg5 {[%emt 0:00:09] [#] White must now prevent ...Nh4.} 10. e5 {[%emt 0:18:22] White wants to play f4.} Nf4 {[%emt 0:18:44][%csl Gf4][%cal Rg5g2]} (10... Qxe5 $2 11. Qxe5+ Nxe5 12. Re1 $18) 11. g3 {[%emt 0:00:42][%cal Bg2g3,Bg3f4,Bf4e5][%mdl 32]} a6 {[%emt 0:01:27]} 12. Bc4 {[%emt 0:12:02]} (12. Bd3 {simplifies} Nxd3 13. cxd3 O-O 14. f4) 12... b5 {[%emt 0:04:22]} 13. Qxf4 {[%emt 0:00:47]} Qxf4 {[%emt 0:00:07]} 14. gxf4 {[%emt 0:00:04]} bxc4 {[%emt 0:00:06] Black is weak on the dark squares} 15. Nd2 {[%emt 0:01:20]} O-O {[%emt 0:19:03]} 16. Nxc4 {[%emt 0:05:06]} f6 {[%emt 0:00:28]} 17. Rad1 {[%emt 0:14:38]} a5 {[%emt 0:02:25]} 18. Ne3 {[%emt 0:10:12] White is more active.} (18. Rfe1 $16) 18... fxe5 $14 {[%emt 0:14:18]} 19. fxe5 {[%emt 0:00:03]} Ra6 {[%emt 0:00:19]} 20. f4 {[%emt 0:05:24][%cal Bf2f4,Bf4f5][%mdl 32]} Rg6+ {[%emt 0:01:58]} 21. Ng2 {[%emt 0:00:12]} Bb7 {[%emt 0:01:54]} 22. Rf2 {[%emt 0:00:04]} d6 {[%emt 0:09:13]} 23. exd6 {[%emt 0:04:30]} cxd6 {[%emt 0:00:17]} 24. f5 {[%emt 0:01:21]} Rh6 {[%emt 0:03:50]} (24... Rxg2+ 25. Rxg2 Bxg2 26. Kxg2 Rxf5 27. Rd3 $11 (27. Rxd6 Rb5 $14)) 25. Rd4 {[%emt 0:02:19]} Re8 {[%emt 0:02:50]} 26. Rfd2 {[%emt 0:02:55]} Kf8 {[%emt 0:03:12]} 27. Rxd6 {[%emt 0:06:57]} Rxd6 {[%emt 0:00:06]} 28. Rxd6 {[%emt 0:00:02][%mdl 4096] Endgame. KRB-KRN} Re2 {[%emt 0:00:27][%csl LRc2,LRg2]} (28... Bxg2 {simplifies} 29. Kxg2 Re2+ 30. Kg3 Rxc2 31. Rb6 a4) 29. Nf4 {[%emt 0:00:30]} Rxc2 {[%emt 0:00:45]} 30. Rd7 {[%emt 0:01:02]} Bc8 {[%emt 0:01:48] The position is equal.} 31. Ne6+ {[%emt 0:02:06]} Ke8 {[%emt 0:00:57]} 32. Rxg7 {[%emt 0:01:10]} (32. Nxg7+ $2 {is the wrong capture.} Kxd7 33. f6 Rxb2 $19) 32... Bxe6 {[%emt 0:00:12]} 33. fxe6 {[%emt 0:00:04]} Rxb2 $11 {[%emt 0:00:11] KR-KR} 34. a4 {[%emt 0:00:29]} Rb4 {[%emt 0:00:56]} 35. Rxh7 {[%emt 0:00:15]} Rxa4 {[%emt 0:00:05]} 36. Kf2 {[%emt 0:00:18]} Re4 {[%emt 0:00:22]} 37. Ra7 {[%emt 0:00:17]} Rxe6 {[%emt 0:00:10]} 38. Rxa5 {[%emt 0:00:03]} Kf7 {[%emt 0:00:13]} 39. Kg3 {[%emt 0:00:06]} Rg6+ {[%emt 0:00:23]} 40. Kf4 {[%emt 0:00:00]} Rh6 {[%emt 0:00:00]} 41. Ra7+ {[%emt 0:00:20] Weighted Error Value: White=0.07 (flawless) /Black=0.05 (flawless) .  Mistake:       	White=1     	---        Inaccurate:     	White=3     	Black=2      OK:         	White=11    	Black=18     Best:        	---       	Black=3} 1/2-1/2

[Event "FIDE Womens Candidates 2024"]
[Site "Toronto"]
[Date "2024.04.13"]
[Round "8.1"]
[White "Tan, Zhongyi"]
[Black "Lei, Tingjie"]
[Result "0-1"]
[ECO "D02"]
[WhiteElo "2521"]
[BlackElo "2550"]
[Annotator "TA"]
[PlyCount "101"]
[EventDate "2024.04.02"]
[EventType "tourn"]
[EventCountry "CAN"]
[SourceTitle "playchess.com"]
[Source "ChessBase"]
[SourceQuality "1"]
[TimeControl "40/5400+30:1800+30"]

{[%evp 11,101,14,14,18,20,13,14,22,20,17,12,20,15,13,18,14,36,11,33,21,33,0,0,0,36,0,0,0,39,0,0,-48,-41,-52,-24,-55,-41,-74,-68,-77,-58,-88,-87,-84,-78,-79,-92,-102,-95,-179,-170,-181,-133,-128,-131,-132,-131,-144,-61,-68,-60,-221,-215,-239,-239,-207,-218,-188,-225,-180,-195,-249,-258,-885,-861,-4027,-1987,-29986,-29986,-29987,-29988,-29988,-29982,-29982,-29983,-5731,-1285,-29988,-29989,-29989,-29981,-29997]} 1. d4 {[%emt 0:00:03]} d5 {[%emt 0:00:11]} 2. Nf3 {[%emt 0:00:08]} Nf6 {[%emt 0:00:09]} 3. Bf4 {[%emt 0:00:09]} c5 {[%emt 0:00:42]} 4. e3 {[%emt 0:00:26]} Nc6 {[%emt 0:00:14]} 5. Nbd2 {[%emt 0:00:46]} Bg4 {[%emt 0:00:19]} 6. c3 {[%emt 0:01:21]} e6 {[%emt 0:00:06]} 7. Qb3 {[%emt 0:00:32]} Qc8 {[%emt 0:00:05]} 8. h3 {[%emt 0:00:30]} Bh5 {[%emt 0:00:05]} 9. Nh4 {[%emt 0:01:35] The position is equal.} Be7 {[%emt 0:06:18]} 10. g4 {[%emt 0:05:56]} Bg6 {[%emt 0:00:06]} 11. Nxg6 {[%emt 0:07:26]} hxg6 {[%emt 0:00:06]} 12. Be2 {[%emt 0:00:13]} a6 {[%emt 0:07:34]} 13. h4 {[%emt 0:06:20]} b5 {[%emt 0:07:36]} 14. h5 {[%emt 0:00:13]} c4 {[%emt 0:08:52]} 15. Qd1 {[%emt 0:02:46]} Qd8 {[%emt 0:07:39]} 16. Rg1 {[%emt 0:09:08]} gxh5 {[%emt 0:01:59]} 17. gxh5 {[%emt 0:00:05]} Bd6 {[%emt 0:03:10]} 18. Bg5 {[%emt 0:03:56]} Be7 {[%emt 0:04:50]} 19. Bf4 {[%emt 0:10:40]} Bd6 {[%emt 0:00:38]} 20. Bg5 {[%emt 0:01:22][%cal Oe3e4]} Be7 {[%emt 0:00:31]} 21. f4 {[%emt 0:17:36]} (21. Bf3 $11) 21... Rb8 {[%emt 0:10:14]} 22. a3 {[%emt 0:14:30]} a5 {[%emt 0:03:03]} 23. Bh4 {[%emt 0:05:50]} Kf8 {[%emt 0:12:44]} (23... Nxh5 $5 24. Bxe7 Qxe7 $17) 24. Bg3 {[%emt 0:02:01]} Bd6 {[%emt 0:01:43] Black is more active.} 25. Bh4 {[%emt 0:04:13]} Ne7 {[%emt 0:03:08]} 26. Bxf6 {[%emt 0:00:06]} gxf6 {[%emt 0:00:03]} 27. Bf1 {[%emt 0:02:44]} b4 {[%emt 0:04:21]} 28. axb4 {[%emt 0:00:04]} axb4 {[%emt 0:00:03]} 29. Bh3 {[%emt 0:00:02]} f5 {[%emt 0:03:53]} 30. Qf3 {[%emt 0:02:25]} (30. Bg2 $17 {keeps fighting.}) 30... Bc7 $19 {[%emt 0:05:53]} 31. Ke2 {[%emt 0:00:28]} Ng8 {[%emt 0:01:31]} (31... Nc8 $19 32. Qg3 Rxh5) 32. Qg3 $17 {[%emt 0:01:05] Strongly threatening Qg7+.} Nf6 {[%emt 0:00:05]} 33. h6 {[%emt 0:00:12]} Ke7 {[%emt 0:01:49]} (33... Rxh6 $2 34. Qg7+ Ke7 35. Qxh6 $18) 34. Qg5 {[%emt 0:01:02]} Qf8 {[%emt 0:00:52]} (34... Kd7 $17 {...bxc3 is the strong threat.} 35. Rg2 Rh7 36. Bxf5 exf5 37. Qxf5+ Ke7) 35. Ra7 $15 {[%emt 0:00:04]} Rc8 {[%emt 0:00:09] Really sharp!} 36. Bg2 $2 {[%emt 0:01:36] Loses the game.} (36. Bxf5 $1 $15 exf5 37. Rh1) 36... Rxh6 $19 {[%emt 0:03:35]} (36... Qxh6 37. Qxh6 Rxh6 38. cxb4 $17) 37. Nf3 {[%emt 0:00:14]} Rh5 {[%emt 0:02:05]} 38. Qg3 {[%emt 0:00:03]} Ne4 {[%emt 0:00:32]} 39. Qe1 {[%emt 0:00:04] [#]} bxc3 $1 {[%emt 0:00:24]} 40. bxc3 {[%emt 0:00:00]} Qg7 {[%emt 0:00:00][%cal Oc8b8] Threatens to win with ...Rb8!} 41. Bf1 {[%emt 0:28:39]} (41. Kd1 $142) 41... Qh8 {[%emt 0:06:21][%cal Oh5h2] And now ...Rh2+! would win.} (41... Rh2+ 42. Kd1 Rb8 43. Qh4+ (43. Rxg7 $2 Rb1#) (43. Rxc7+ $2 {loses.} Kd6 $19) 43... Rxh4 44. Rxg7 (44. Rxc7+ $2 {perishes.} Kd6 $19) 44... Nxc3+ 45. Kd2 $11) 42. Qa1 $2 {[%emt 0:00:23]} (42. Bg2) 42... Kf6 {[%emt 0:07:28][%cal Oc8g8] aiming for ...Rg8!} 43. Rg2 {[%emt 0:03:47]} Rh3 {[%emt 0:02:10][%cal Oh3f3] ( -> ...Rxf3!)} 44. Ne5 {[%emt 0:01:10]} Qh5+ {[%emt 0:00:21]} 45. Ke1 {[%emt 0:00:04]} Rxe3+ {[%emt 0:00:14]} 46. Re2 {[%emt 0:06:51]} Qh4+ {[%emt 0:07:13]} 47. Kd1 {[%emt 0:00:00]} Rxe2 {[%emt 0:01:43]} 48. Bxe2 {[%emt 0:00:00]} Qxf4 {[%emt 0:00:41]} (48... Qf2 $142 49. Qc1 Rh8 (49... Bxe5 50. fxe5+ Kg7 51. Ra6 Rh8 52. Kc2 Qxe2+ 53. Kb1 Nd2+ 54. Ka2 Rb8 55. Qg1+ Kf8 56. Qc1 Nb3+ 57. Kb1 Nxc1+ 58. Rb6 Rxb6+ 59. Kxc1 Qg2 60. Kd1 Rb1#)) 49. Qb2 {[%emt 0:01:39] [#]} Rh8 $1 {[%emt 0:01:34]} 50. Bf3 {[%emt 0:00:00]} Rh2 {[%emt 0:00:56]} 51. Qc1 {[%emt 0:00:00] Weighted Error Value: White=0.68/Black=0.14 (very precise) .  Loses game:     	White=1     	---        Mistake:       	White=4     	Black=2      Inaccurate:     	White=6     	Black=2      OK:         	White=8     	Black=21     Best:        	White=4     	Black=1} 0-1

[Event "FIDE Womens Candidates 2024"]
[Site "Toronto"]
[Date "2024.04.13"]
[Round "8.3"]
[White "Lagno, Kateryna"]
[Black "Goryachkina, Aleksandra"]
[Result "1/2-1/2"]
[ECO "C78"]
[WhiteElo "2542"]
[BlackElo "2553"]
[Annotator "TA"]
[PlyCount "68"]
[EventDate "2024.04.02"]
[EventType "tourn"]
[EventCountry "CAN"]
[SourceTitle "playchess.com"]
[Source "ChessBase"]
[SourceQuality "1"]
[TimeControl "40/5400+30:1800+30"]

{[%evp 15,68,27,35,12,18,20,14,9,27,0,0,0,2,0,0,0,0,2,0,0,12,0,18,0,12,0,8,0,21,0,13,11,15,0,33,0,0,0,0,0,0,0,7,8,20,16,22,24,88,0,34,0,106,0,23]} 1. e4 {[%emt 0:00:03]} e5 {[%emt 0:00:14]} 2. Nf3 {[%emt 0:00:08]} Nc6 {[%emt 0:00:14]} 3. Bb5 {[%emt 0:00:09]} a6 {[%emt 0:00:31]} 4. Ba4 {[%emt 0:00:44]} Nf6 {[%emt 0:00:18]} 5. O-O {[%emt 0:00:36]} b5 {[%emt 0:00:36]} 6. Bb3 {[%emt 0:00:12]} Bc5 {[%emt 0:00:32]} 7. a4 {[%emt 0:03:38]} Rb8 {[%emt 0:01:03]} 8. axb5 {[%emt 0:10:27]} axb5 {[%emt 0:00:36][%cal Oe8g8] [#]} 9. Nxe5 $1 {[%emt 0:00:13]} Nxe5 {[%emt 0:00:50]} 10. d4 {[%emt 0:00:26]} Bxd4 {[%emt 0:01:04]} 11. Qxd4 {[%emt 0:00:04]} d6 {[%emt 0:00:40]} 12. f4 {[%emt 0:03:39]} Nc6 {[%emt 0:01:26]} 13. Qd3 {[%emt 0:01:28][%cal Oe4e5]} O-O {[%emt 0:03:30]} 14. Nc3 {[%emt 0:01:25][%cal Bb1c3,Bc3e2,Be2g3][%mdl 32]} Nb4 {[%emt 0:01:12]} 15. Qd2 {[%emt 0:15:24]} Be6 {[%emt 0:05:32]} 16. Bxe6 {[%emt 0:01:26]} fxe6 {[%emt 0:00:06]} 17. Ne2 {[%emt 0:00:55]} Nc6 {[%emt 0:05:17]} 18. Ng3 {[%emt 0:01:19]} Qd7 {[%emt 0:15:26]} 19. b3 {[%emt 0:02:38]} e5 {[%emt 0:09:31]} 20. Bb2 {[%emt 0:04:12]} Rbe8 {[%emt 0:01:39]} 21. Rf3 {[%emt 0:15:37]} Qe6 {[%emt 0:05:48]} 22. Re1 {[%emt 0:10:12]} exf4 {[%emt 0:06:16]} 23. Rxf4 {[%emt 0:00:05]} Ne5 {[%emt 0:01:04]} 24. Rf5 {[%emt 0:09:54]} Nfd7 {[%emt 0:02:57]} 25. Ref1 {[%emt 0:00:13]} g6 {[%emt 0:08:31]} 26. Rxf8+ {[%emt 0:00:06]} Rxf8 {[%emt 0:00:54]} 27. Rxf8+ {[%emt 0:00:16]} Nxf8 {[%emt 0:01:08]} 28. h3 {[%emt 0:04:50]} Nfd7 {[%emt 0:09:00]} 29. Ne2 {[%emt 0:00:36]} Nf6 {[%emt 0:01:46]} 30. Nf4 {[%emt 0:01:56]} Qf7 {[%emt 0:01:28]} 31. Qb4 {[%emt 0:05:44]} Nfg4 {[%emt 0:06:19] [#]} 32. Qd2 {[%emt 0:01:31]} (32. Bc1 $1 $16 Nf6 (32... g5 $2 33. hxg4 gxf4 34. Qxb5 $18) 33. Qxb5) 32... Nf6 $14 {[%emt 0:00:07]} 33. Qb4 {[%emt 0:00:22]} ({White should try} 33. Qa5 $14) 33... Nfg4 $16 {[%emt 0:00:52] [#] A dynamic duo of knights.} 34. Qd2 {[%emt 0:00:26]} (34. Bc1 $1 $16 Nf6 (34... g5 $2 35. hxg4 gxf4 36. Qxb5 $18) 35. Qxb5) 34... Nf6 {[%emt 0:01:54] Weighted Error Value: White=0.17 (very precise) /Black=0.10 (very precise) .  Mistake:       	White=3     	Black=1      Inaccurate:     	White=2     	Black=1      OK:         	White=8     	Black=10     Best:        	White=1     	Black=1} 1/2-1/2

[Event "FIDE Womens Candidates 2024"]
[Site "Toronto"]
[Date "2024.04.14"]
[Round "9.3"]
[White "Vaishali, Rameshbabu"]
[Black "Tan, Zhongyi"]
[Result "0-1"]
[ECO "B22"]
[WhiteElo "2475"]
[BlackElo "2521"]
[Annotator "TA"]
[PlyCount "42"]
[EventDate "2024.04.02"]
[EventType "tourn"]
[EventCountry "CAN"]
[SourceTitle "playchess.com"]
[Source "ChessBase"]
[SourceQuality "1"]
[TimeControl "40/5400+30:1800+30"]

{[%evp 10,42,21,24,26,18,34,21,34,14,26,39,20,0,25,0,5,-10,3,-23,-12,-24,-28,-115,-111,-113,-116,-231,-184,-209,-209,-666,-687,-675,-664]} 1. e4 {[%emt 0:00:14]} c5 {[%emt 0:00:05]} 2. c3 {[%emt 0:00:04]} e6 {[%emt 0:01:28]} 3. d4 {[%emt 0:00:06]} d5 {[%emt 0:01:48]} 4. exd5 {[%emt 0:00:21]} exd5 {[%emt 0:00:42]} 5. Nf3 {[%emt 0:00:14]} a6 {[%emt 0:05:43]} 6. Bd3 {[%emt 0:00:19]} c4 {[%emt 0:00:28]} 7. Bc2 {[%emt 0:00:11]} Bd6 {[%emt 0:00:07]} 8. O-O {[%emt 0:00:40]} Ne7 {[%emt 0:00:05] Active counter play! The position is equal.} 9. b3 {[%emt 0:07:32] Black must now prevent bxc4.} cxb3 {[%emt 0:00:09]} 10. axb3 {[%emt 0:00:13]} O-O {[%emt 0:00:19]} 11. Ng5 {[%emt 0:03:01]} g6 {[%emt 0:06:03]} 12. Qf3 {[%emt 0:14:19]} Qc7 {[%emt 0:05:50]} 13. h4 {[%emt 0:05:27]} Nbc6 {[%emt 0:10:46]} (13... h5 {simplifies} 14. Ba3 Kg7 15. Bxd6 Qxd6 16. Nh3 Bxh3 17. Qxh3 Nd7) 14. Ba3 {[%emt 0:06:41]} Kg7 {[%emt 0:13:53]} 15. Re1 {[%emt 0:06:04]} h5 {[%emt 0:06:24]} 16. c4 {[%emt 0:21:06] [#]} (16. Bxd6 $11 Qxd6 17. Nh3) 16... f6 $1 $17 {[%emt 0:06:47]} 17. Bxd6 {[%emt 0:14:23]} Qxd6 {[%emt 0:00:15]} 18. c5 {[%emt 0:00:54]} (18. Nh3 $17 {is the only way for White.}) 18... Qc7 {[%emt 0:00:59]} 19. Nh3 {[%emt 0:03:44]} Nxd4 {[%emt 0:00:19]} 20. Qe3 {[%emt 0:00:13] [#]} (20. Qf4 Qxc5 (20... Nxc2 $2 {perishes.} 21. Qxc7 Nxe1 22. Qxe7+ $18) 21. Rxe7+ Qxe7 22. Qxd4 Qe1+ 23. Kh2) 20... Nxc2 $19 {[%emt 0:00:10]} (20... Nec6 $2 21. Na3 Bxh3 22. Qxh3 $19) 21. Qxe7+ {[%emt 0:00:06]} Rf7 {[%emt 0:00:25] Weighted Error Value: White=0.55/Black=0.09 (flawless) .  Mistake:       	White=3     	---        Inaccurate:     	White=1     	---        OK:         	White=4     	Black=5      Best:        	White=1     	Black=1      Strong:       	---       	Black=1} 0-1